bitfinex/quotes_ETHUSD_20230109
["timestamp","ask_amount","ask_price","bid_price","bid_amount"]
[1673250600474,0.23,1313.8,1313.5,16.54016612]
[1673250600651,0.23,1313.8,1313.5,24.15340612]
[1673250601073,0.23,1313.8,1313.5,16.54016612]
[1673250601291,0.23,1313.8,1313.5,12.19519582]
[1673250601636,0.23,1313.8,1313.5,4.58198582]
[1673250601792,0.23,1313.8,1313.5,12.19520582]
[1673250603372,0.23,1313.8,1313.5,4.58198582]
[1673250605283,0.23,1313.8,1313.5,1.31371612]
[1673250605489,7.84158,1313.8,1313.5,1.31371612]
[1673250605721,0.23,1313.8,1313.5,1.31371612]
[1673250606680,23.57537,1313.9,1313.5,1.31371612]
[1673250608841,0.23,1313.8,1313.5,8.92679612]
[1673250609056,0.23,1313.8,1313.5,4.58199682]
[1673250610232,7.84151,1313.8,1313.5,4.58199682]
[1673250610834,0.23,1313.8,1313.5,4.58199682]
[1673250611294,23.06477,1313.8,1313.5,4.58199682]
[1673250611531,15.453,1313.8,1313.5,1.31371612]
[1673250612248,15.44940178,1313.8,1313.5,1.31371612]
[1673250613093,7.83790178,1313.8,1313.5,1.31371612]
[1673250613609,0.22640178,1313.8,1313.5,1.31371612]
[1673250615047,7.83792178,1313.8,1313.5,1.31371612]
[1673250616819,0.22640178,1313.8,1313.5,4.46278615]
[1673250617075,0.22640178,1313.8,1313.5,12.07600615]
[1673250617243,0.22640178,1313.8,1313.5,4.46278615]
[1673250618452,7.83796178,1313.8,1313.5,4.46278615]
[1673250623776,7.83796178,1313.8,1313.5,1.31371612]
[1673250629249,0.22640178,1313.8,1313.5,1.31371612]
[1673250630312,7.83796178,1313.8,1313.5,1.31371612]
[1673250630477,0.22640178,1313.8,1313.5,12.92690612]
[1673250631762,0.22640178,1313.8,1313.5,5.31371612]
[1673250631950,0.22640178,1313.8,1313.5,8.22070482]
[1673250632368,0.22640178,1313.8,1313.5,8.2167998]
[1673250633666,0.22640178,1313.8,1313.5,4.2167998]
[1673250634215,0.22640178,1313.8,1313.5,11.8299398]
[1673250634789,7.83795178,1313.8,1313.5,4.2167998]
[1673250635053,7.83795178,1313.8,1313.5,1.3098111]
[1673250635054,18.47191591,1313.8,1313.5,1.3098111]
[1673250635211,10.86036591,1313.8,1313.5,1.3098111]
[1673250637987,18.47186591,1313.8,1313.5,1.3098111]
[1673250639943,32.50540545,1313.8,1313.5,1.3098111]
[1673250640157,26.08336591,1313.8,1313.5,1.3098111]
[1673250640572,18.47181591,1313.8,1313.5,1.3098111]
[1673250640943,32.50535545,1313.8,1313.5,1.3098111]
[1673250641100,26.08331591,1313.8,1313.5,1.3098111]
[1673250641533,18.47181591,1313.8,1313.5,1.3098111]
[1673250641748,26.08331591,1313.8,1313.5,1.3098111]
[1673250643255,18.47181591,1313.8,1313.5,1.3098111]
[1673250643410,26.08331591,1313.8,1313.5,1.3098111]
[1673250644884,18.47181591,1313.8,1313.5,1.3098111]
[1673250645096,32.50535545,1313.8,1313.5,1.3098111]
[1673250645546,26.08331591,1313.8,1313.5,1.3098111]
[1673250646467,30.07246542,1313.8,1313.5,1.3098111]
[1673250646683,30.07246542,1313.8,1313.5,0.8109161]
[1673250646918,36.46636296,1313.8,1313.5,1.1791734]
[1673250652734,30.07246542,1313.8,1313.5,1.1791734]
[1673250653043,36.46636296,1313.8,1313.5,1.1791734]
[1673250653235,30.07246542,1313.8,1313.5,1.1791734]
[1673250653452,14.84946542,1313.8,1313.5,1.1791734]
[1673250653835,7.23796542,1313.8,1313.5,1.1791734]
[1673250654042,14.84947542,1313.8,1313.5,1.1791734]
[1673250654251,22.46098542,1313.8,1313.5,1.1791734]
[1673250655961,0.05,1313.7,1313.5,1.1791734]
[1673250656169,30.07296542,1313.8,1313.5,1.1791734]
[1673250657032,22.46098542,1313.8,1313.5,1.1791734]
[1673250657209,14.84947542,1313.8,1313.5,1.1791734]
[1673250657416,22.46098542,1313.8,1313.5,1.1791734]
[1673250658465,14.84947542,1313.8,1313.5,1.1791734]
[1673250659035,22.46098542,1313.8,1313.5,1.1791734]
[1673250659281,30.07249542,1313.8,1313.5,1.1791734]
[1673250662150,0.05,1313.7,1313.5,1.1791734]
[1673250662405,7.61209,1313.7,1313.5,1.1791734]
[1673250662987,15.22418,1313.7,1313.5,1.1791734]
[1673250663437,28.73346542,1313.8,1313.5,1.1791734]
[1673250663648,32.35613591,1313.8,1313.5,1.1791734]
[1673250664242,0.05,1313.6,1313.5,1.1791734]
[1673250664506,29.33372178,1313.8,1313.5,4.24269257]
[1673250664714,29.33372178,1313.8,1313.5,1.1791734]
[1673250664931,36.94554178,1313.8,1313.5,1.1791734]
[1673250665238,44.55736178,1313.8,1313.5,1.1791734]
[1673250669925,44.55736178,1313.8,1313.5,1.17620725]
[1673250672492,0.05,1313.7,1313.5,1.17620725]
[1673250672657,7.61235,1313.7,1313.5,1.17620725]
[1673250673393,29.33372178,1313.8,1313.5,1.17620725]
[1673250673605,21.72190178,1313.8,1313.5,16.60201406]
[1673250673859,21.72190178,1313.8,1313.5,2.71746451]
[1673250674225,29.33347178,1313.8,1313.5,2.71746451]
[1673250675644,36.94504178,1313.8,1313.5,2.71746451]
[1673250676259,36.94504178,1313.8,1313.5,1.17620725]
[1673250676470,44.55661178,1313.8,1313.5,1.17620725]
[1673250677755,48.54576129,1313.8,1313.5,1.17620725]
[1673250678796,7.61245,1313.7,1313.5,1.17620725]
[1673250678956,0.23,1313.6,1313.5,1.17620725]
[1673250679385,7.84266,1313.6,1313.5,1.17620725]
[1673250681395,0.23,1313.6,1313.5,1.17620725]
[1673250681598,0.23,1313.7,1313.5,1.17620725]
[1673250682377,7.84213,1313.7,1313.5,1.17620725]
[1673250684319,15.45426,1313.7,1313.5,1.17620725]
[1673250684894,15.50426,1313.7,1313.5,1.17620725]
[1673250685107,15.45426,1313.7,1313.5,1.17620725]
[1673250686858,20.30930795,1313.7,1313.5,1.17620725]
[1673250688952,20.35930795,1313.7,1313.5,1.17620725]
[1673250689177,20.30930795,1313.7,1313.5,1.17620725]
[1673250690358,12.69717795,1313.7,1313.5,1.17620725]
[1673250691047,12.69717795,1313.7,1313.5,1.17277065]
[1673250691589,27.92143795,1313.7,1313.5,1.17277065]
[1673250693074,27.97143795,1313.7,1313.5,1.17277065]
[1673250693275,27.92143795,1313.7,1313.5,1.17277065]
[1673250694771,20.30930795,1313.7,1313.5,1.17277065]
[1673250695145,27.92143795,1313.7,1313.5,1.17277065]
[1673250700398,38.304485,1313.7,1313.5,1.17277065]
[1673250701255,3.98914951,1313.6,1313.5,1.17277065]
[1673250701466,37.28147555,1313.6,1313.5,1.17277065]
[1673250701811,38.04501389,1313.6,1313.5,1.17277065]
[1673250701987,38.04501389,1313.6,1313.4,0.02702084]
[1673250702197,25.81566241,1313.5,1313.4,0.02702084]
[1673250702411,33.42890241,1313.5,1313.4,0.02702084]
[1673250702624,41.39791568,1313.5,1313.4,0.02702084]
[1673250703515,46.39791568,1313.5,1313.4,0.02702084]
[1673250706918,46.93971568,1313.5,1313.4,0.02702084]
[1673250707124,46.93642243,1313.5,1313.4,0.02702084]
[1673250709121,46.39462243,1313.5,1313.4,0.02702084]
[1673250711260,46.93642243,1313.5,1313.4,0.02702084]
[1673250713430,46.39462243,1313.5,1313.4,0.02702084]
[1673250714585,38.78138243,1313.5,1313.4,0.02702084]
[1673250714873,46.39462243,1313.5,1313.4,0.02702084]
[1673250717566,41.39462243,1313.5,1313.4,0.02702084]
[1673250718671,46.39462243,1313.5,1313.4,0.02702084]
[1673250724621,41.39462243,1313.5,1313.4,0.02702084]
[1673250725661,46.39462243,1313.5,1313.4,0.02702084]
[1673250728610,46.39462243,1313.5,1313.4,0.02373193]
[1673250730715,31.16814243,1313.5,1313.4,0.02373193]
[1673250730924,17.18486953,1313.5,1313.4,0.02373193]
[1673250731759,24.79810953,1313.5,1313.4,0.02373193]
[1673250732555,32.41134953,1313.5,1313.4,0.02373193]
[1673250733002,40.71064953,1313.5,1313.4,0.02373193]
[1673250733816,33.09740953,1313.5,1313.4,0.02373193]
[1673250734274,25.48416953,1313.5,1313.4,0.02373193]
[1673250734454,33.09740953,1313.5,1313.4,0.02373193]
[1673250734814,40.71064953,1313.5,1313.4,0.02373193]
[1673250738284,48.32388953,1313.5,1313.4,0.02373193]
[1673250738809,54.69392243,1313.5,1313.4,0.02373193]
[1673250739119,48.32388953,1313.5,1313.4,0.02373193]
[1673250739440,54.69392243,1313.5,1313.4,0.02373193]
[1673250739757,48.32388953,1313.5,1313.4,0.02373193]
[1673250745814,43.32388953,1313.5,1313.4,0.02373193]
[1673250746331,35.71064953,1313.5,1313.4,0.02373193]
[1673250746540,40.71064953,1313.5,1313.4,0.02373193]
[1673250747511,47.08068243,1313.5,1313.4,0.02373193]
[1673250747694,40.71064953,1313.5,1313.4,0.02373193]
[1673250747907,47.08068243,1313.5,1313.4,0.02373193]
[1673250748634,40.71064953,1313.5,1313.4,0.02373193]
[1673250748912,47.08068243,1313.5,1313.4,0.0204896]
[1673250749205,48.32388953,1313.5,1313.4,0.0204896]
[1673250750017,54.69392243,1313.5,1313.4,0.0204896]
[1673250752945,54.69392243,1313.5,1313.4,1.31810652]
[1673250753151,46.39462243,1313.5,1313.4,1.31810652]
[1673250753399,40.02458953,1313.5,1313.4,1.31810652]
[1673250754867,41.39462243,1313.5,1313.4,1.31810652]
[1673250755093,35.02458953,1313.5,1313.4,1.31810652]
[1673250755315,41.39462243,1313.5,1313.4,1.31810652]
[1673250755470,46.39462243,1313.5,1313.4,1.31810652]
[1673250755881,46.39063275,1313.5,1313.4,1.31810652]
[1673250756803,40.02059985,1313.5,1313.4,1.31810652]
[1673250757229,46.39063275,1313.5,1313.4,1.31810652]
[1673250759075,40.02059985,1313.5,1313.4,1.31810652]
[1673250760211,17.18087985,1313.5,1313.4,1.31810652]
[1673250760382,17.58864492,1313.5,1313.4,1.31810652]
[1673250760539,25.20188492,1313.5,1313.4,1.31810652]
[1673250762453,25.20188492,1313.5,1313.4,0.99940647]
[1673250763797,17.58864492,1313.5,1313.4,0.99940647]
[1673250764232,22.30564541,1313.5,1313.4,0.99940647]
[1673250765815,29.91888541,1313.5,1313.4,0.99940647]
[1673250766024,37.53212541,1313.5,1313.4,0.99940647]
[1673250766228,29.91888541,1313.5,1313.4,0.99940647]
[1673250767768,38.90215831,1313.5,1313.4,0.99940647]
[1673250768785,43.90215831,1313.5,1313.4,0.99940647]
[1673250769152,37.53212541,1313.5,1313.4,0.99940647]
[1673250769688,43.90215831,1313.5,1313.4,0.99940647]
[1673250770573,37.53212541,1313.5,1313.4,0.99940647]
[1673250770958,43.90215831,1313.5,1313.4,0.99940647]
[1673250771159,36.28891831,1313.5,1313.4,0.99940647]
[1673250771369,29.91888541,1313.5,1313.4,0.99940647]
[1673250771727,37.53212541,1313.5,1313.4,0.99940647]
[1673250772357,29.91888541,1313.5,1313.4,0.99940647]
[1673250772671,37.53212541,1313.5,1313.4,0.99940647]
[1673250774302,29.91888541,1313.5,1313.4,0.99940647]
[1673250774624,17.30564541,1313.5,1313.4,0.99940647]
[1673250774850,16.82510658,1313.5,1313.4,0.99940647]
[1673250775353,32.05158658,1313.5,1313.4,0.99940647]
[1673250776408,27.05158658,1313.5,1313.4,0.99940647]
[1673250777794,19.43834658,1313.5,1313.4,0.99940647]
[1673250779041,0.22271707,1313.5,1313.4,0.99940647]
[1673250781774,7.83595707,1313.5,1313.4,0.99940647]
[1673250782233,0.22271707,1313.5,1313.4,0.99940647]
[1673250784540,7.83595707,1313.5,1313.4,0.99940647]
[1673250785574,7.83595707,1313.5,1313.4,0.99689389]
[1673250804114,7.61275,1313.6,1313.4,0.99689389]
[1673250806899,7.61275,1313.6,1313.4,0.99484534]
[1673250808946,24.11850834,1313.7,1313.6,0.00200224]
[1673250809105,46.59304258,1313.7,1313.6,0.00200224]
[1673250809474,54.20547258,1313.7,1313.6,0.00200224]
[1673250815304,42.83543968,1313.7,1313.6,0.00200224]
[1673250816105,27.61031968,1313.7,1313.6,0.00200224]
[1673250816404,32.61031968,1313.7,1313.6,0.00200224]
[1673250816783,46.59243258,1313.7,1313.6,0.00200224]
[1673250817924,54.20451258,1313.7,1313.6,0.00200224]
[1673250819259,47.83447968,1313.7,1313.6,0.00200224]
[1673250819402,54.20451258,1313.7,1313.6,0.00200224]
[1673250821306,47.83447968,1313.7,1313.6,0.00200224]
[1673250821770,54.20451258,1313.7,1313.6,0.00200224]
[1673250822665,47.83447968,1313.7,1313.6,0.00200224]
[1673250824048,54.20451258,1313.7,1313.6,0.00200224]
[1673250828109,47.83447968,1313.7,1313.6,0.00200224]
[1673250828287,0.00145006,1313.6,1313.4,0.99484534]
[1673250828605,7.61433006,1313.6,1313.4,0.99484534]
[1673250842118,15.22721006,1313.6,1313.4,0.99484534]
[1673250849485,22.84009006,1313.6,1313.4,0.99135251]
[1673250849847,25.20655617,1313.6,1313.4,0.99135251]
[1673250858539,31.57658907,1313.6,1313.4,0.99135251]
[1673250858782,32.34012741,1313.6,1313.4,0.99135251]
[1673250859006,25.97009451,1313.6,1313.4,0.99135251]
[1673250859202,0.23,1313.5,1313.4,0.99135251]
[1673250859409,23.06972,1313.5,1313.4,0.99135251]
[1673250859623,26.8500404,1313.5,1313.4,0.99135251]
[1673250859956,19.2368004,1313.5,1313.4,0.99135251]
[1673250864543,11.6235604,1313.5,1313.4,0.99135251]
[1673250871540,11.62040047,1313.5,1313.4,0.99135251]
[1673250873849,15.45332007,1313.5,1313.4,0.99135251]
[1673250882526,7.84008007,1313.5,1313.4,0.99135251]
[1673250886407,15.45332007,1313.5,1313.4,0.99135251]
[1673250886622,7.84008007,1313.5,1313.4,0.99135251]
[1673250894380,7.84008007,1313.5,1313.4,0.98866763]
[1673250896049,0.22684007,1313.5,1313.4,0.98866763]
[1673250900731,7.84008007,1313.5,1313.4,0.98866763]
[1673250901665,15.45332007,1313.5,1313.4,0.98866763]
[1673250901869,18.45043665,1313.5,1313.4,0.98866763]
[1673250903506,10.83719665,1313.5,1313.4,0.98866763]
[1673250904164,26.06367665,1313.5,1313.4,0.98866763]
[1673250907458,18.45043665,1313.5,1313.4,0.98866763]
[1673250907973,26.06367665,1313.5,1313.4,0.98866763]
[1673250908186,30.05282616,1313.5,1313.4,0.98866763]
[1673250908347,22.43958616,1313.5,1313.4,0.98866763]
[1673250915309,22.43958616,1313.5,1313.4,0.98647468]
[1673250917512,22.21274609,1313.5,1313.4,0.98647468]
[1673250917974,22.44274609,1313.5,1313.4,0.98647468]
[1673250932074,22.44274609,1313.5,1313.4,1.38489245]
[1673250937233,0.23,1313.5,1313.4,1.38489245]
[1673250937463,7.6127,1313.6,1313.4,1.38489245]
[1673250937796,11.60184951,1313.6,1313.4,1.38489245]
[1673250939738,11.60184951,1313.6,1313.4,1.38193075]
[1673250941030,19.21454951,1313.6,1313.4,1.38193075]
[1673250943821,15.2254,1313.6,1313.4,1.38193075]
[1673250944146,23.89874,1313.7,1313.4,1.38193075]
[1673250944499,48.85227141,1313.7,1313.4,1.38193075]
[1673250944718,41.23966141,1313.7,1313.4,1.38193075]
[1673250944877,48.85227141,1313.7,1313.4,1.38193075]
[1673250945293,41.23966141,1313.7,1313.4,1.38193075]
[1673250945508,34.86962851,1313.7,1313.4,1.38193075]
[1673250947392,15.655739,1313.7,1313.4,1.38193075]
[1673250947604,16.28626,1313.7,1313.4,1.38193075]
[1673250949211,8.15606,1313.7,1313.4,1.38193075]
[1673250949427,9.34594,1313.8,1313.4,3.12793075]
[1673250949428,7.61194,1313.8,1313.4,3.12793075]
[1673250949643,7.61194,1313.8,1313.5,6.24770133]
[1673250949808,7.61194,1313.8,1313.5,10.24898352]
[1673250950023,8.15374,1313.8,1313.5,11.99498352]
[1673250950279,33.62575,1313.9,1313.5,11.9963314]
[1673250950455,33.62575,1313.9,1313.5,15.16087153]
[1673250950894,33.62575,1313.9,1313.5,8.91054013]
[1673250951077,26.01436,1313.9,1313.5,22.77386366]
[1673250951285,18.40297,1313.9,1313.5,22.77386366]
[1673250952388,26.01436,1313.9,1313.5,15.16064366]
[1673250952971,26.01436,1313.9,1313.5,8.91054013]
[1673250953210,33.62575,1313.9,1313.5,8.91054013]
[1673250954162,26.01436,1313.9,1313.5,15.16055261]
[1673250955215,26.01436,1313.9,1313.5,15.16051616]
[1673250958581,33.31699383,1313.9,1313.5,15.16051616]
[1673250958775,33.31699383,1313.9,1313.5,22.77372616]
[1673250958776,25.70560383,1313.9,1313.5,22.77372616]
[1673250959276,18.09443383,1313.9,1313.5,15.16051616]
[1673250959481,25.70535383,1313.9,1313.5,22.77372616]
[1673250959715,25.70535383,1313.9,1313.5,15.16051616]
[1673250960476,25.70535383,1313.9,1313.5,22.77359616]
[1673250961005,25.70535383,1313.9,1313.5,22.7710015]
[1673250962109,32.07538673,1313.9,1313.5,22.76905811]
[1673250962779,25.70535383,1313.9,1313.5,22.76905811]
[1673250966601,32.07538673,1313.9,1313.5,22.76905811]
[1673250966811,25.70535383,1313.9,1313.5,22.76905811]
[1673250967960,32.07538673,1313.9,1313.5,22.76905811]
[1673250968317,25.70535383,1313.9,1313.5,22.76905811]
[1673250969674,25.16355383,1313.9,1313.5,22.76905811]
[1673250970271,25.16011419,1313.9,1313.5,22.76905811]
[1673250970808,31.53014709,1313.9,1313.5,22.76905811]
[1673250971017,25.16011419,1313.9,1313.5,22.76905811]
[1673250971230,17.85748036,1313.9,1313.5,22.76905811]
[1673250972461,17.83798036,1313.9,1313.5,22.76905811]
[1673250973350,0.05,1313.6,1313.5,22.76905811]
[1673250973524,24.20801326,1313.9,1313.5,16.52102547]
[1673250973726,17.83798036,1313.9,1313.5,22.76909304]
[1673250975244,24.20801326,1313.9,1313.5,8.90794547]
[1673250976078,17.83798036,1313.9,1313.5,8.90794547]
[1673250976291,17.83798036,1313.9,1313.5,15.15591572]
[1673250976994,24.20801326,1313.9,1313.5,15.15591572]
[1673250978766,17.83798036,1313.9,1313.5,22.76912572]
[1673250984700,17.83798036,1313.9,1313.5,22.77777685]
[1673250987801,24.20801326,1313.9,1313.5,22.77777685]
[1673250988167,17.83798036,1313.9,1313.5,22.77777685]
[1673250988406,24.20801326,1313.9,1313.5,22.77777685]
[1673250989270,17.83798036,1313.9,1313.5,22.77777685]
[1673250990274,24.20801326,1313.9,1313.5,22.77777685]
[1673250990708,17.83798036,1313.9,1313.5,22.77777685]
[1673250990896,31.81893326,1313.9,1313.5,15.16456685]
[1673250991110,15.22416,1313.7,1313.4,8.51001777]
[1673250991369,7.61312,1313.6,1313.4,8.51001777]
[1673250991754,15.22624,1313.6,1313.4,7.93841777]
[1673250991960,15.22624,1313.6,1313.4,0.39841777]
[1673250992592,22.83936,1313.6,1313.4,0.39841777]
[1673250992839,25.160511,1313.6,1313.4,0.39488847]
[1673250993896,17.547391,1313.6,1313.4,0.39488847]
[1673250994068,15.22624,1313.6,1313.4,0.39488847]
[1673250994627,22.83936,1313.6,1313.4,0.39488847]
[1673250994789,15.22221892,1313.6,1313.4,0.39488847]
[1673250994995,22.83533892,1313.6,1313.4,0.39488847]
[1673250995251,15.22221892,1313.6,1313.4,0.39488847]
[1673250996629,17.62577158,1313.6,1313.4,0.39488847]
[1673250996835,10.01265158,1313.6,1313.4,0.39488847]
[1673250999249,17.62531158,1313.6,1313.4,0.39488847]
[1673250999982,10.01621266,1313.6,1313.4,0.39488847]
[1673251000774,10.01621266,1313.6,1313.4,0.38478847]
[1673251001200,31.61156556,1313.6,1313.4,0.38478847]
[1673251001880,23.99890556,1313.6,1313.4,0.38478847]
[1673251002276,35.60071507,1313.6,1313.4,0.38478847]
[1673251002489,27.98805507,1313.6,1313.4,0.38478847]
[1673251002905,21.61802217,1313.6,1313.4,0.38478847]
[1673251008309,6.39270217,1313.6,1313.4,0.38478847]
[1673251009363,40.70753,1313.7,1313.4,0.38478847]
[1673251009572,0.23,1313.6,1313.4,7.99859847]
[1673251010254,0.23,1313.6,1313.4,0.38478847]
[1673251011248,23.74651,1313.7,1313.4,0.38478847]
[1673251011733,31.35898,1313.7,1313.4,0.38478847]
[1673251013022,38.97145,1313.7,1313.4,0.38478847]
[1673251014270,44.715885,1313.7,1313.4,0.38478847]
[1673251023534,44.715885,1313.7,1313.4,0.38169476]
[1673251024167,37.103415,1313.7,1313.4,0.38169476]
[1673251026373,29.490945,1313.7,1313.4,0.38169476]
[1673251027886,37.103415,1313.7,1313.4,0.38169476]
[1673251029196,44.715955,1313.7,1313.4,0.38169476]
[1673251030469,37.103415,1313.7,1313.4,0.38169476]
[1673251037522,49.46855285,1313.7,1313.4,0.38169476]
[1673251039046,48.96855285,1313.7,1313.4,0.38169476]
[1673251047582,7.613,1313.6,1313.4,0.38169476]
[1673251048204,15.226,1313.6,1313.4,0.38169476]
[1673251050388,22.839,1313.6,1313.4,0.38169476]
[1673251054195,3.98914951,1313.5,1313.4,0.38169476]
[1673251054439,11.60238951,1313.5,1313.4,0.38169476]
[1673251057469,19.21562951,1313.5,1313.4,0.38169476]
[1673251058406,11.60238951,1313.5,1313.4,0.38169476]
[1673251062184,11.60238951,1313.5,1313.4,0.37901299]
[1673251062376,15.00925427,1313.5,1313.4,0.37901299]
[1673251064512,7.39601427,1313.5,1313.4,0.37901299]
[1673251065126,15.00925427,1313.5,1313.4,0.37901299]
[1673251069213,11.59896433,1313.5,1313.4,0.37901299]
[1673251071749,9.22763834,1313.6,1313.4,0.37901299]
[1673251071971,13.21678785,1313.6,1313.4,0.37901299]
[1673251072877,20.82954785,1313.6,1313.4,0.37901299]
[1673251074111,28.44255785,1313.6,1313.4,0.37901299]
[1673251074326,24.45340834,1313.6,1313.4,0.37901299]
[1673251074790,32.06641834,1313.6,1313.4,0.37901299]
[1673251076976,24.45340834,1313.6,1313.4,0.37901299]
[1673251082426,32.06641834,1313.6,1313.4,0.37901299]
[1673251089866,32.06641834,1313.6,1313.4,0.37550174]
[1673251090134,37.65186617,1313.6,1313.4,0.37550174]
[1673251108932,30.03885617,1313.6,1313.4,0.37550174]
[1673251109141,29.27531783,1313.6,1313.4,0.37550174]
[1673251111343,29.27531783,1313.6,1313.4,0.37168899]
[1673251112810,36.88832783,1313.6,1313.4,0.37168899]
[1673251113187,40.87747734,1313.6,1313.4,0.37168899]
[1673251113638,41.64101568,1313.6,1313.4,0.37168899]
[1673251114235,3.98914951,1313.5,1313.4,0.37168899]
[1673251114450,23.37973108,1313.5,1313.4,0.37168899]
[1673251117535,15.76649108,1313.5,1313.4,0.37168899]
[1673251117863,4.16410157,1313.5,1313.4,0.37168899]
[1673251118172,30.03886617,1313.6,1313.4,0.37168899]
[1673251118341,34.02801568,1313.6,1313.4,0.37168899]
[1673251118577,26.41499568,1313.6,1313.4,0.37168899]
[1673251118921,34.02803568,1313.6,1313.4,0.37168899]
[1673251120168,33.26449734,1313.6,1313.4,0.37168899]
[1673251121718,18.03869734,1313.6,1313.4,0.37168899]
[1673251121914,25.65168734,1313.6,1313.4,0.37168899]
[1673251122123,33.26467734,1313.6,1313.4,0.37168899]
[1673251123747,33.26467734,1313.6,1313.4,0.19568899]
[1673251123916,40.87766734,1313.6,1313.4,0.19568899]
[1673251130090,3.98914951,1313.5,1313.4,0.19568899]
[1673251130243,30.91663624,1313.5,1313.4,0.19568899]
[1673251130972,23.30339624,1313.5,1313.4,0.19568899]
[1673251138268,30.91663624,1313.5,1313.4,0.19568899]
[1673251139404,26.82886951,1313.5,1313.4,0.19568899]
[1673251142287,19.21562951,1313.5,1313.4,0.19568899]
[1673251142487,7.61324,1313.5,1313.4,0.19568899]
[1673251144462,7.61324,1313.5,1313.4,0.19304932]
[1673251146053,7.61324,1313.5,1313.4,1.35293967]
[1673251146648,22.83972,1313.5,1313.4,1.35293967]
[1673251152639,15.22648,1313.5,1313.4,1.35293967]
[1673251155262,15.22359833,1313.5,1313.4,1.35293967]
[1673251155844,16.07679,1313.6,1313.4,1.35293967]
[1673251156014,24.23175,1313.6,1313.4,1.35293967]
[1673251156220,23.68995,1313.6,1313.4,1.35293967]
[1673251156434,23.78817,1313.7,1313.4,1.35293967]
[1673251156435,16.176,1313.7,1313.4,1.49409215]
[1673251156669,16.176,1313.7,1313.4,9.10774215]
[1673251156993,16.176,1313.7,1313.4,1.49409215]
[1673251157164,23.78827,1313.7,1313.4,1.49409215]
[1673251157380,39.01262,1313.7,1313.4,1.49409215]
[1673251157991,31.40035,1313.7,1313.4,1.49409215]
[1673251159288,35.38949951,1313.7,1313.4,1.35293967]
[1673251159575,43.00176951,1313.7,1313.4,1.35293967]
[1673251160659,35.38949951,1313.7,1313.4,1.35293967]
[1673251160872,43.00176951,1313.7,1313.4,1.35293967]
[1673251161064,48.4344603,1313.7,1313.4,1.35293967]
[1673251166757,48.4344603,1313.7,1313.4,0.98732967]
[1673251168869,3.98914951,1313.6,1313.4,0.98732967]
[1673251169022,40.8221903,1313.7,1313.4,0.98732967]
[1673251169232,33.2099203,1313.7,1313.4,0.98732967]
[1673251171053,25.5978403,1313.7,1313.4,0.98732967]
[1673251172283,25.5978403,1313.7,1313.4,8.60086967]
[1673251172491,25.5978403,1313.7,1313.4,0.98732967]
[1673251172922,33.2100503,1313.7,1313.4,0.98732967]
[1673251175817,48.4343403,1313.7,1313.4,0.98732967]
[1673251175969,40.8221303,1313.7,1313.4,0.98732967]
[1673251177793,22.83972,1313.5,1313.4,0.98732967]
[1673251178128,39.70476952,1313.5,1313.4,0.98732967]
[1673251178656,44.70476952,1313.5,1313.4,0.98732967]
[1673251181971,42.96814746,1313.5,1313.4,0.98732967]
[1673251182200,34.81362952,1313.5,1313.4,0.98732967]
[1673251182436,42.42686952,1313.5,1313.4,0.98732967]
[1673251182589,42.42624747,1313.5,1313.4,0.98732967]
[1673251183157,28.47037978,1313.5,1313.4,0.98732967]
[1673251183334,36.08361978,1313.5,1313.4,0.98732967]
[1673251183691,34.81362952,1313.5,1313.4,0.98732967]
[1673251184213,42.42686952,1313.5,1313.4,0.98732967]
[1673251185433,36.08361978,1313.5,1313.4,0.98732967]
[1673251186583,42.42438923,1313.5,1313.4,0.98732967]
[1673251189000,44.17038923,1313.5,1313.4,0.98732967]
[1673251189218,47.71218923,1313.5,1313.4,0.98732967]
[1673251189645,44.71218923,1313.5,1313.4,0.98382486]
[1673251190946,38.37141978,1313.5,1313.4,0.98382486]
[1673251195409,44.71466952,1313.5,1313.4,0.98382486]
[1673251199051,44.71266952,1313.5,1313.4,0.98382486]
[1673251200660,47.71266952,1313.5,1313.4,0.98382486]
[1673251202664,47.71266952,1313.5,1313.3,9.94e-06]
[1673251202834,12.07839925,1313.4,1313.3,9.94e-06]
[1673251203049,46.3780362,1313.4,1313.3,9.94e-06]
[1673251203394,47.14157454,1313.4,1313.3,9.94e-06]
[1673251203558,50.14157454,1313.4,1313.3,9.94e-06]
[1673251205613,64.11975114,1313.4,1313.3,9.94e-06]
[1673251205915,45.31718646,1313.4,1313.3,9.94e-06]
[1673251206077,49.88718646,1313.4,1313.3,9.94e-06]
[1673251206294,30.08954646,1313.4,1313.3,9.94e-06]
[1673251206538,28.24518951,1313.4,1313.3,9.94e-06]
[1673251206729,20.08896951,1313.4,1313.3,9.94e-06]
[1673251206912,27.70278951,1313.4,1313.3,9.94e-06]
[1673251207818,23.71364,1313.4,1313.3,9.94e-06]
[1673251208026,16.09982,1313.4,1313.3,9.94e-06]
[1673251208243,6.74,1313.4,1313.3,9.94e-06]
[1673251208918,14.35382,1313.4,1313.3,9.94e-06]
[1673251209627,16.96764,1313.4,1313.3,9.94e-06]
[1673251210728,9.35382,1313.4,1313.3,9.94e-06]
[1673251210988,7.61382,1313.4,1313.3,9.94e-06]
[1673251211304,15.22764,1313.4,1313.3,9.94e-06]
[1673251211905,22.84146,1313.4,1313.3,9.94e-06]
[1673251212473,15.22764,1313.4,1313.3,9.94e-06]
[1673251212619,1.746,1313.4,1313.3,9.94e-06]
[1673251214617,9.35982,1313.4,1313.3,9.94e-06]
[1673251214828,1.746,1313.4,1313.3,9.94e-06]
[1673251215951,8.54800251,1313.4,1313.3,9.94e-06]
[1673251216249,42.43490085,1313.4,1313.3,9.94e-06]
[1673251216454,48.21442719,1313.4,1313.3,9.94e-06]
[1673251217049,56.86582719,1313.4,1313.3,9.94e-06]
[1673251217274,57.09582719,1313.4,1313.3,9.94e-06]
[1673251217492,57.63772719,1313.4,1313.3,9.94e-06]
[1673251219890,71.63772719,1313.4,1313.3,9.94e-06]
[1673251220937,73.38372719,1313.4,1313.3,9.94e-06]
[1673251221405,66.83230085,1313.4,1313.3,9.94e-06]
[1673251221560,47.32276251,1313.4,1313.3,9.94e-06]
[1673251221778,46.78086251,1313.4,1313.3,9.94e-06]
[1673251222345,39.16704251,1313.4,1313.3,9.94e-06]
[1673251222870,0.00321021,1313.3,1313.1,0.05150615]
[1673251223185,18.34986972,1313.3,1313.1,0.05150615]
[1673251224503,10.73535972,1313.3,1313.2,1.34810193]
[1673251224749,6.74621021,1313.3,1313.2,1.34810193]
[1673251224919,1.74621021,1313.3,1313.2,1.48806274]
[1673251225881,16.97501021,1313.3,1313.2,1.48806274]
[1673251226237,16.97501021,1313.3,1313.2,1.34810193]
[1673251226452,24.58941021,1313.3,1313.2,1.34810193]
[1673251227285,35.66228756,1313.3,1313.2,1.93e-06]
[1673251227494,37.40828756,1313.3,1313.2,1.93e-06]
[1673251227813,42.94965332,1313.3,1313.2,1.93e-06]
[1673251228195,36.62946382,1313.3,1313.2,1.93e-06]
[1673251228670,42.93219612,1313.3,1313.2,1.93e-06]
[1673251228862,42.93096871,1313.3,1313.2,1.93e-06]